[Event "Live Chess"]
[Site "Chess.com"]
[Date "2024.06.02"]
[Round "-"]
[White "MagnersCarlsberg2870"]
[Black "gmnorfolk"]
[Result "0-1"]
[WhiteElo "1766"]
[BlackElo "2127"]
[TimeControl "300"]
[EndTime "8:20:46 PDT"]
[Termination "gmnorfolk won by resignation"]

1. d4 {[%clk 0:04:58.1]} 1... Nf6 {[%clk 0:04:57.5]} 2. Nf3 {[%clk 0:04:56.9]}
2... d5 {[%clk 0:04:54.5]} 3. e3 {[%clk 0:04:55.9]} 3... g6 {[%clk 0:04:50.8]}
4. c4 {[%clk 0:04:52.9]} 4... Bg7 {[%clk 0:04:50.7]} 5. cxd5 {[%clk 0:04:51.8]}
5... Nxd5 {[%clk 0:04:49.8]} 6. Nc3 {[%clk 0:04:50.8]} 6... c5 {[%clk
0:04:43.4]} 7. Bc4 {[%clk 0:04:48.8]} 7... Nxc3 {[%clk 0:04:34.4]} 8. bxc3
{[%clk 0:04:45.6]} 8... O-O {[%clk 0:04:34.3]} 9. O-O {[%clk 0:04:43.6]} 9...
Qc7 {[%clk 0:04:24.2]} 10. Qb3 {[%clk 0:04:38]} 10... Nc6 {[%clk 0:04:20.6]} 11.
dxc5 {[%clk 0:04:24.4]} 11... Na5 {[%clk 0:04:17.3]} 12. Qb4 {[%clk 0:04:19.2]}
12... Nxc4 {[%clk 0:04:14.6]} 13. Qxc4 {[%clk 0:04:18.1]} 13... Be6 {[%clk
0:04:14.3]} 14. Qb4 {[%clk 0:04:13.5]} 14... a5 {[%clk 0:04:13.3]} 15. Qb5
{[%clk 0:04:10.7]} 15... Bxc3 {[%clk 0:04:09.9]} 16. Rb1 {[%clk 0:04:09.5]}
16... Bxa2 {[%clk 0:04:08.9]} 17. Rb2 {[%clk 0:04:04.6]} 17... Bxb2 {[%clk
0:04:03]} 18. Bxb2 {[%clk 0:04:03.7]} 18... Bd5 {[%clk 0:03:57]} 19. Be5 {[%clk
0:03:58.9]} 19... Qc6 {[%clk 0:03:53.2]} 20. Qb2 {[%clk 0:03:55]} 20... f6
{[%clk 0:03:51.7]} 21. Bd4 {[%clk 0:03:47.6]} 21... Bxf3 {[%clk 0:03:48.5]} 22.
gxf3 {[%clk 0:03:46.2]} 22... e5 {[%clk 0:03:47.8]} 23. Bc3 {[%clk 0:03:42.3]}
23... Qxc5 {[%clk 0:03:46.6]} 24. Rc1 {[%clk 0:03:41.1]} 24... Qe7 {[%clk
0:03:41.8]} 25. e4 {[%clk 0:03:35.7]} 25... Rf7 {[%clk 0:03:40.5]} 26. Qb6
{[%clk 0:03:32.4]} 26... Ra6 {[%clk 0:03:35.8]} 27. Qe3 {[%clk 0:03:28.3]} 27...
Kg7 {[%clk 0:03:30.9]} 28. Bd2 {[%clk 0:03:26.2]} 28... a4 {[%clk 0:03:25.4]}
29. Rc8 {[%clk 0:03:24.7]} 29... g5 {[%clk 0:03:20.6]} 30. h4 {[%clk 0:03:23.1]}
30... h6 {[%clk 0:03:14.7]} 31. hxg5 {[%clk 0:03:19.8]} 31... fxg5 {[%clk
0:03:13.6]} 32. f4 {[%clk 0:03:16.3]} 32... gxf4 {[%clk 0:03:09]} 33. Qh3 {[%clk
0:03:13.2]} 33... Rg6+ {[%clk 0:03:07.9]} 34. Kf1 {[%clk 0:03:11.1]} 34... Qd7
{[%clk 0:02:59.3]} 35. Qxd7 {[%clk 0:03:02.3]} 35... Rxd7 {[%clk 0:02:56.8]} 36.
Bc3 {[%clk 0:03:01.3]} 36... Re6 {[%clk 0:02:52.8]} 0-1

[Event "Live Chess"]
[Site "Chess.com"]
[Date "2024.06.02"]
[Round "-"]
[White "DylanMeyer1"]
[Black "PaulyD81"]
[Result "1-0"]
[WhiteElo "1702"]
[BlackElo "979"]
[TimeControl "300"]
[EndTime "8:20:46 PDT"]
[Termination "DylanMeyer1 won by resignation"]

1. c4 {[%clk 0:04:59.1]} 1... Nf6 {[%clk 0:04:55.6]} 2. Nc3 {[%clk 0:04:58.6]}
2... e6 {[%clk 0:04:44.7]} 3. g3 {[%clk 0:04:56.9]} 3... d5 {[%clk 0:04:44]} 4.
c5 {[%clk 0:04:56.8]} 4... Nc6 {[%clk 0:04:40.2]} 5. Bg2 {[%clk 0:04:55.8]} 5...
Bxc5 {[%clk 0:04:32.2]} 6. e3 {[%clk 0:04:53.8]} 6... O-O {[%clk 0:04:23.7]} 7.
d4 {[%clk 0:04:52.5]} 7... Bb4 {[%clk 0:04:07.5]} 8. Ne2 {[%clk 0:04:52.4]} 8...
Ne4 {[%clk 0:03:44.3]} 9. a3 {[%clk 0:04:50.4]} 9... Nxc3 {[%clk 0:03:35.2]} 10.
Nxc3 {[%clk 0:04:50.3]} 10... Bxc3+ {[%clk 0:03:30.2]} 11. bxc3 {[%clk
0:04:48.4]} 11... Qg5 {[%clk 0:03:11.5]} 12. O-O {[%clk 0:04:48.3]} 12... Ne7
{[%clk 0:02:59.4]} 13. e4 {[%clk 0:04:47.7]} 13... dxe4 {[%clk 0:02:57.1]} 14.
Bxg5 {[%clk 0:04:45.8]} 1-0

[Event "Live Chess"]
[Site "Chess.com"]
[Date "2024.06.02"]
[Round "-"]
[White "blunderabit"]
[Black "KyryloPoluliakh"]
[Result "1-0"]
[WhiteElo "1769"]
[BlackElo "1530"]
[TimeControl "300"]
[EndTime "8:20:52 PDT"]
[Termination "blunderabit won by checkmate"]

1. e4 {[%clk 0:04:53.1]} 1... c5 {[%clk 0:04:57.8]} 2. Nf3 {[%clk 0:04:51]} 2...
Nc6 {[%clk 0:04:54.9]} 3. Bb5 {[%clk 0:04:48]} 3... Nd4 {[%clk 0:04:52.6]} 4.
Nxd4 {[%clk 0:04:45.3]} 4... cxd4 {[%clk 0:04:51.8]} 5. O-O {[%clk 0:04:44.7]}
5... Nf6 {[%clk 0:04:50.2]} 6. d3 {[%clk 0:04:42.2]} 6... a6 {[%clk 0:04:44.6]}
7. Ba4 {[%clk 0:04:39.4]} 7... e5 {[%clk 0:04:41.1]} 8. f4 {[%clk 0:04:36.7]}
8... exf4 {[%clk 0:04:36.8]} 9. Bxf4 {[%clk 0:04:35.4]} 9... b5 {[%clk 0:04:35]}
10. Bb3 {[%clk 0:04:32.9]} 10... d5 {[%clk 0:04:33.6]} 11. exd5 {[%clk
0:04:04.1]} 11... Nxd5 {[%clk 0:04:29.5]} 12. Re1+ {[%clk 0:03:50.3]} 12... Be7
{[%clk 0:04:22.3]} 13. Bg5 {[%clk 0:03:44.9]} 13... Be6 {[%clk 0:04:18.6]} 14.
Bxe7 {[%clk 0:03:35.1]} 14... Nxe7 {[%clk 0:04:10.3]} 15. Bxe6 {[%clk
0:03:31.1]} 15... fxe6 {[%clk 0:04:09.4]} 16. Qh5+ {[%clk 0:03:28.1]} 16... g6
{[%clk 0:04:05.2]} 17. Qe5 {[%clk 0:03:22.9]} 17... O-O {[%clk 0:04:02.2]} 18.
Qxe6+ {[%clk 0:03:21.2]} 18... Kg7 {[%clk 0:03:57.4]} 19. Qxe7+ {[%clk
0:03:16.7]} 19... Qxe7 {[%clk 0:03:54]} 20. Rxe7+ {[%clk 0:03:14.5]} 20... Rf7
{[%clk 0:03:53.5]} 21. Rxf7+ {[%clk 0:03:13]} 21... Kxf7 {[%clk 0:03:50.5]} 22.
Nd2 {[%clk 0:03:12.4]} 22... Rc8 {[%clk 0:03:48.8]} 23. Rc1 {[%clk 0:03:09.5]}
23... Re8 {[%clk 0:03:47.2]} 24. Ne4 {[%clk 0:03:06.2]} 24... Ke6 {[%clk
0:03:44.6]} 25. Kf2 {[%clk 0:02:55.4]} 25... Rf8+ {[%clk 0:03:43.3]} 26. Ke2
{[%clk 0:02:53.8]} 26... Ke5 {[%clk 0:03:40.3]} 27. Rf1 {[%clk 0:02:51]} 27...
Rh8 {[%clk 0:03:34.6]} 28. Rf6 {[%clk 0:02:41.8]} 28... a5 {[%clk 0:03:29]} 29.
Rb6 {[%clk 0:02:39.9]} 29... b4 {[%clk 0:03:27.8]} 30. Rb5+ {[%clk 0:02:38.4]}
30... Ke6 {[%clk 0:03:26.6]} 31. Rxa5 {[%clk 0:02:35.8]} 31... Rc8 {[%clk
0:03:25.5]} 32. Kd2 {[%clk 0:02:31.3]} 32... h6 {[%clk 0:03:20]} 33. Rb5 {[%clk
0:02:29]} 33... Rf8 {[%clk 0:03:13.7]} 34. Rxb4 {[%clk 0:02:24.4]} 34... Rf1
{[%clk 0:03:12.3]} 35. Rxd4 {[%clk 0:02:20.5]} 35... Rg1 {[%clk 0:03:10.5]} 36.
g3 {[%clk 0:02:12.8]} 36... Rg2+ {[%clk 0:03:07.7]} 37. Kc3 {[%clk 0:02:11.5]}
37... Rxh2 {[%clk 0:03:05.7]} 38. a4 {[%clk 0:02:11.1]} 38... Rh1 {[%clk
0:03:01.5]} 39. a5 {[%clk 0:02:05.2]} 39... Ra1 {[%clk 0:02:57.3]} 40. b4 {[%clk
0:02:03.1]} 40... g5 {[%clk 0:02:52.5]} 41. Rd6+ {[%clk 0:02:00.4]} 41... Ke7
{[%clk 0:02:49.4]} 42. Rxh6 {[%clk 0:01:58.9]} 42... Ra3+ {[%clk 0:02:47]} 43.
Kc4 {[%clk 0:01:56.6]} 43... Ra1 {[%clk 0:02:43.2]} 44. Nxg5 {[%clk 0:01:54.3]}
44... Kd7 {[%clk 0:02:41.6]} 45. Ne4 {[%clk 0:01:51.3]} 45... Kc7 {[%clk
0:02:40.2]} 46. Rb6 {[%clk 0:01:46.8]} 46... Ra4 {[%clk 0:02:37]} 47. g4 {[%clk
0:01:44.5]} 47... Ra1 {[%clk 0:02:35.5]} 48. g5 {[%clk 0:01:42.9]} 48... Rg1
{[%clk 0:02:35]} 49. Rb5 {[%clk 0:01:41.6]} 49... Kc6 {[%clk 0:02:30.1]} 50. a6
{[%clk 0:01:39.5]} 50... Ra1 {[%clk 0:02:28]} 51. Ra5 {[%clk 0:01:36.3]} 51...
Rxa5 {[%clk 0:02:26]} 52. bxa5 {[%clk 0:01:35]} 52... Kc7 {[%clk 0:02:24.1]} 53.
g6 {[%clk 0:01:31.4]} 53... Kb8 {[%clk 0:02:23.3]} 54. g7 {[%clk 0:01:30.1]}
54... Ka7 {[%clk 0:02:22.9]} 55. g8=Q {[%clk 0:01:28.7]} 55... Kxa6 {[%clk
0:02:21.6]} 56. Qd5 {[%clk 0:01:25.5]} 56... Ka7 {[%clk 0:02:20.1]} 57. Nc5
{[%clk 0:01:22]} 57... Kb8 {[%clk 0:02:18.7]} 58. Qb7# {[%clk 0:01:20.7]} 1-0

[Event "Live Chess"]
[Site "Chess.com"]
[Date "2024.06.02"]
[Round "-"]
[White "nitrofish07"]
[Black "juniortay"]
[Result "1-0"]
[WhiteElo "2099"]
[BlackElo "2257"]
[TimeControl "300"]
[EndTime "8:20:57 PDT"]
[Termination "nitrofish07 won on time"]

1. d4 {[%clk 0:04:57.5]} 1... Nf6 {[%clk 0:04:58.5]} 2. c4 {[%clk 0:04:57]} 2...
e5 {[%clk 0:04:56.9]} 3. d5 {[%clk 0:04:51.8]} 3... Bc5 {[%clk 0:04:55]} 4. h3
{[%clk 0:04:49]} 4... Ne4 {[%clk 0:04:47.6]} 5. e3 {[%clk 0:04:43.9]} 5... Qh4
{[%clk 0:04:44.3]} 6. Qf3 {[%clk 0:04:39.9]} 6... Bb4+ {[%clk 0:04:20.5]} 7. Bd2
{[%clk 0:04:38.1]} 7... Nxd2 {[%clk 0:04:19.3]} 8. Nxd2 {[%clk 0:04:38]} 8...
Bxd2+ {[%clk 0:04:16]} 9. Kxd2 {[%clk 0:04:37.9]} 9... Rf8 {[%clk 0:04:14.2]}
10. g3 {[%clk 0:04:31.6]} 10... Qe7 {[%clk 0:04:11.6]} 11. a3 {[%clk 0:04:26.2]}
11... Na6 {[%clk 0:04:08.5]} 12. b4 {[%clk 0:04:14.3]} 12... d6 {[%clk
0:04:06.5]} 13. Ne2 {[%clk 0:04:06.7]} 13... Bd7 {[%clk 0:04:03.2]} 14. h4
{[%clk 0:04:03.7]} 14... O-O-O {[%clk 0:04:01]} 15. Bg2 {[%clk 0:03:52.4]} 15...
f5 {[%clk 0:03:58.1]} 16. Nc3 {[%clk 0:03:45.2]} 16... h6 {[%clk 0:03:50.2]} 17.
h5 {[%clk 0:03:38.9]} 17... Kb8 {[%clk 0:03:36.9]} 18. c5 {[%clk 0:03:25]} 18...
e4 {[%clk 0:03:25.7]} 19. Qe2 {[%clk 0:03:23.1]} 19... Qe5 {[%clk 0:03:17.4]}
20. c6 {[%clk 0:03:18.8]} 20... Bc8 {[%clk 0:03:14.3]} 21. Qb5 {[%clk
0:03:07.1]} 21... Ka8 {[%clk 0:03:05.2]} 22. Bf1 {[%clk 0:03:04.5]} 22... bxc6
{[%clk 0:02:53.9]} 23. Qxc6+ {[%clk 0:02:56.7]} 23... Bb7 {[%clk 0:02:51.2]} 24.
Qa4 {[%clk 0:02:49]} 24... Nb8 {[%clk 0:02:38.6]} 25. Bc4 {[%clk 0:02:17.9]}
25... c6 {[%clk 0:02:31.7]} 26. Kc2 {[%clk 0:02:10.2]} 26... Nd7 {[%clk
0:02:26.4]} 27. dxc6 {[%clk 0:02:07.2]} 27... Nb6 {[%clk 0:02:18.5]} 28. cxb7+
{[%clk 0:02:04.8]} 28... Kb8 {[%clk 0:02:17.3]} 29. Qb5 {[%clk 0:01:58.5]} 29...
d5 {[%clk 0:02:16.1]} 30. Bb3 {[%clk 0:01:46.4]} 30... Rc8 {[%clk 0:02:13.1]}
31. bxc8=Q+ {[%clk 0:01:45.2]} 31... Rxc8 {[%clk 0:02:03.6]} 32. Qc5 {[%clk
0:01:02.4]} 32... Rxc5 {[%clk 0:01:52.4]} 33. bxc5 {[%clk 0:01:02.3]} 33... Nd7
{[%clk 0:01:44.6]} 34. Rhd1 {[%clk 0:01:01.6]} 34... Nf6 {[%clk 0:01:34.9]} 35.
Nxd5 {[%clk 0:00:58.8]} 35... Ng4 {[%clk 0:01:26.3]} 36. Nb4 {[%clk 0:00:50.2]}
36... Kc7 {[%clk 0:01:18.9]} 37. Rac1 {[%clk 0:00:35.5]} 37... Nxf2 {[%clk
0:01:17]} 38. Rd5 {[%clk 0:00:34.7]} 38... Qxg3 {[%clk 0:01:12.9]} 39. c6 {[%clk
0:00:33.8]} 39... Nd3 {[%clk 0:01:01.8]} 40. Nxd3 {[%clk 0:00:19.2]} 40... exd3+
{[%clk 0:01:00.2]} 41. Kxd3 {[%clk 0:00:19.1]} 41... f4 {[%clk 0:00:44.7]} 42.
Rd7+ {[%clk 0:00:18.3]} 42... Kc8 {[%clk 0:00:40.2]} 43. Re7 {[%clk 0:00:17.9]}
43... fxe3 {[%clk 0:00:28.5]} 44. Be6+ {[%clk 0:00:16.8]} 44... Kd8 {[%clk
0:00:23]} 45. c7+ {[%clk 0:00:16.2]} 45... Kxe7 {[%clk 0:00:21.7]} 46. c8=Q
{[%clk 0:00:16.1]} 46... e2+ {[%clk 0:00:20.2]} 47. Kxe2 {[%clk 0:00:15.6]}
47... Qg2+ {[%clk 0:00:19.2]} 48. Kd3 {[%clk 0:00:15.2]} 48... Qf3+ {[%clk
0:00:17.5]} 49. Kc2 {[%clk 0:00:14.8]} 49... Qe2+ {[%clk 0:00:15.5]} 50. Kb1
{[%clk 0:00:13.5]} 50... Qb5+ {[%clk 0:00:12.9]} 51. Ka2 {[%clk 0:00:12.3]}
51... Qe2+ {[%clk 0:00:10.9]} 52. Rc2 {[%clk 0:00:11.9]} 52... Qe5 {[%clk
0:00:06.8]} 53. Qd7+ {[%clk 0:00:10.7]} 53... Kf6 {[%clk 0:00:05.7]} 54. Qf7+
{[%clk 0:00:09.9]} 54... Kg5 {[%clk 0:00:04.7]} 55. Rg2+ {[%clk 0:00:09.6]} 1-0

[Event "Live Chess"]
[Site "Chess.com"]
[Date "2024.06.02"]
[Round "-"]
[White "DavrosLight"]
[Black "DarranAS"]
[Result "0-1"]
[WhiteElo "801"]
[BlackElo "1416"]
[TimeControl "300"]
[EndTime "8:21:11 PDT"]
[Termination "DarranAS won on time"]

1. e4 {[%clk 0:04:59.1]} 1... c5 {[%clk 0:04:57.4]} 2. Nf3 {[%clk 0:04:57.7]}
2... d6 {[%clk 0:04:55.1]} 3. d4 {[%clk 0:04:56.9]} 3... cxd4 {[%clk 0:04:52.1]}
4. Nxd4 {[%clk 0:04:53.7]} 4... e5 {[%clk 0:04:51.7]} 5. Nf3 {[%clk 0:04:51.7]}
5... Be7 {[%clk 0:04:43.9]} 6. b3 {[%clk 0:04:50]} 6... a6 {[%clk 0:04:40.1]} 7.
Bc4 {[%clk 0:04:48.8]} 7... Nc6 {[%clk 0:04:33.6]} 8. O-O {[%clk 0:04:42.6]}
8... Bg4 {[%clk 0:04:28.2]} 9. h3 {[%clk 0:04:40.1]} 9... Bh5 {[%clk 0:04:25]}
10. g4 {[%clk 0:04:38.1]} 10... Bg6 {[%clk 0:04:23]} 11. h4 {[%clk 0:04:33.5]}
11... h5 {[%clk 0:04:20.2]} 12. g5 {[%clk 0:04:22.7]} 12... Qc7 {[%clk
0:03:53.1]} 13. Nc3 {[%clk 0:04:19.6]} 13... b5 {[%clk 0:03:38.6]} 14. Qd5
{[%clk 0:04:18]} 14... Bf8 {[%clk 0:03:27.2]} 15. Bd3 {[%clk 0:03:51.8]} 15...
Nge7 {[%clk 0:03:24]} 16. Nxb5 {[%clk 0:03:33.3]} 16... axb5 {[%clk 0:03:21.6]}
17. Qxb5 {[%clk 0:03:25.3]} 17... Rb8 {[%clk 0:03:15.6]} 18. Qc4 {[%clk
0:03:10.1]} 18... Nc8 {[%clk 0:02:43.5]} 19. Nxe5 {[%clk 0:02:47.4]} 19... dxe5
{[%clk 0:02:34.6]} 20. Bb2 {[%clk 0:02:40.9]} 20... Nb6 {[%clk 0:02:25.8]} 21.
Bxe5 {[%clk 0:02:23.8]} 21... Bd6 {[%clk 0:02:16.2]} 22. Qb5 {[%clk 0:02:05.9]}
22... Bxe5 {[%clk 0:02:12.2]} 23. f4 {[%clk 0:01:58.6]} 23... Bxa1 {[%clk
0:02:10.1]} 24. Qa6 {[%clk 0:01:31.8]} 24... Bd4+ {[%clk 0:02:05.2]} 25. Kh2
{[%clk 0:01:28.1]} 25... O-O {[%clk 0:01:59.3]} 26. Qa3 {[%clk 0:01:13.9]} 26...
Be3 {[%clk 0:01:52.4]} 27. Kg3 {[%clk 0:01:01.9]} 27... Ra8 {[%clk 0:01:43.6]}
28. Qb2 {[%clk 0:00:54.1]} 28... Nb4 {[%clk 0:01:34.8]} 29. Qe5 {[%clk 0:00:30]}
29... Qxe5 {[%clk 0:01:31.2]} 30. fxe5 {[%clk 0:00:29]} 30... Nxd3 {[%clk
0:01:30.7]} 31. cxd3 {[%clk 0:00:27.7]} 31... Bd4 {[%clk 0:01:24.8]} 32. e6
{[%clk 0:00:18.2]} 32... fxe6 {[%clk 0:01:22.5]} 33. Rxf8+ {[%clk 0:00:14]}
33... Rxf8 {[%clk 0:01:21.2]} 34. a4 {[%clk 0:00:10.6]} 34... Nxa4 {[%clk
0:01:16.9]} 35. bxa4 {[%clk 0:00:09]} 35... Bf2+ {[%clk 0:01:13.7]} 36. Kg2
{[%clk 0:00:07.1]} 36... Bxe4+ {[%clk 0:01:09.4]} 37. dxe4 {[%clk 0:00:05.4]}
37... g6 {[%clk 0:01:07.5]} 38. a5 {[%clk 0:00:02.2]} 38... e5 {[%clk
0:01:06.6]} 39. a6 {[%clk 0:00:00.7]} 39... Kg7 {[%clk 0:01:00.8]} 0-1

[Event "Live Chess"]
[Site "Chess.com"]
[Date "2024.06.02"]
[Round "-"]
[White "elephantgerrald"]
[Black "gobbles19"]
[Result "0-1"]
[WhiteElo "871"]
[BlackElo "2221"]
[TimeControl "300"]
[EndTime "8:21:18 PDT"]
[Termination "gobbles19 won by checkmate"]

1. e4 {[%clk 0:04:58.7]} 1... c5 {[%clk 0:04:57.2]} 2. Nf3 {[%clk 0:04:55]} 2...
e6 {[%clk 0:04:56.1]} 3. Bc4 {[%clk 0:04:48.3]} 3... d5 {[%clk 0:04:53.3]} 4.
exd5 {[%clk 0:04:45.4]} 4... exd5 {[%clk 0:04:53.2]} 5. Bb5+ {[%clk 0:04:42.5]}
5... Bd7 {[%clk 0:04:51.4]} 6. Bxd7+ {[%clk 0:04:30.4]} 6... Qxd7 {[%clk
0:04:51.3]} 7. Ne5 {[%clk 0:04:20.9]} 7... Qc7 {[%clk 0:04:48]} 8. Qf3 {[%clk
0:04:18.2]} 8... Qxe5+ {[%clk 0:04:46]} 9. Qe2 {[%clk 0:04:10.9]} 9... Qxe2+
{[%clk 0:04:44.7]} 10. Kxe2 {[%clk 0:04:09.5]} 10... Nc6 {[%clk 0:04:44.6]} 11.
Re1 {[%clk 0:04:07.9]} 11... O-O-O {[%clk 0:04:43.3]} 12. Kf1 {[%clk 0:03:51.1]}
12... Nf6 {[%clk 0:04:42.8]} 13. d3 {[%clk 0:03:48.5]} 13... Bd6 {[%clk
0:04:42.3]} 14. Bg5 {[%clk 0:03:45.3]} 14... Rhe8 {[%clk 0:04:40.1]} 15. Rxe8
{[%clk 0:03:36.8]} 15... Rxe8 {[%clk 0:04:40]} 16. Nc3 {[%clk 0:03:35.8]} 16...
Nd4 {[%clk 0:04:38.1]} 17. Bxf6 {[%clk 0:03:17.4]} 17... gxf6 {[%clk 0:04:38]}
18. Nxd5 {[%clk 0:03:15]} 18... Nxc2 {[%clk 0:04:35.8]} 19. Rc1 {[%clk
0:03:03.7]} 19... Nd4 {[%clk 0:04:31.8]} 20. Nxf6 {[%clk 0:03:01.3]} 20... Re6
{[%clk 0:04:30.2]} 21. Nxh7 {[%clk 0:02:44.7]} 21... Rg6 {[%clk 0:04:22.8]} 22.
b4 {[%clk 0:02:21.9]} 22... b6 {[%clk 0:04:21.4]} 23. bxc5 {[%clk 0:02:20.3]}
23... bxc5 {[%clk 0:04:21.3]} 24. f3 {[%clk 0:02:16]} 24... Ne6 {[%clk 0:04:20]}
25. g4 {[%clk 0:02:02.2]} 25... Bxh2 {[%clk 0:04:10.6]} 26. Kg2 {[%clk
0:01:57.4]} 26... Be5 {[%clk 0:04:07.8]} 27. Kh3 {[%clk 0:01:54.6]} 27... Rg7
{[%clk 0:04:05.8]} 28. Nf8 {[%clk 0:01:43.6]} 28... Nxf8 {[%clk 0:04:04]} 29.
Rxc5+ {[%clk 0:01:42]} 29... Bc7 {[%clk 0:04:03.7]} 30. d4 {[%clk 0:01:39.1]}
30... Ne6 {[%clk 0:04:02.2]} 31. Rc6 {[%clk 0:01:37.3]} 31... Rh7+ {[%clk
0:03:59.9]} 32. Kg2 {[%clk 0:01:35.7]} 32... Nxd4 {[%clk 0:03:59.1]} 33. Rc4
{[%clk 0:01:32.6]} 33... Rh2+ {[%clk 0:03:54.2]} 34. Kf1 {[%clk 0:01:23.9]}
34... Nxf3 {[%clk 0:03:53.7]} 35. g5 {[%clk 0:01:12.1]} 35... Kd7 {[%clk
0:03:53.2]} 36. a4 {[%clk 0:01:08.4]} 36... Bg3 {[%clk 0:03:52.1]} 37. g6 {[%clk
0:01:04.1]} 37... Rf2# {[%clk 0:03:51.2]} 0-1

[Event "Live Chess"]
[Site "Chess.com"]
[Date "2024.06.02"]
[Round "-"]
[White "willc-h99"]
[Black "TC2304"]
[Result "0-1"]
[WhiteElo "2573"]
[BlackElo "2324"]
[TimeControl "300"]
[EndTime "8:21:26 PDT"]
[Termination "TC2304 won by resignation"]

1. d4 {[%clk 0:04:58.9]} 1... Nf6 {[%clk 0:04:55.7]} 2. g4 {[%clk 0:04:56.6]}
2... Nxg4 {[%clk 0:04:54.2]} 3. e4 {[%clk 0:04:55.7]} 3... d5 {[%clk 0:04:52.6]}
4. e5 {[%clk 0:04:54.2]} 4... g6 {[%clk 0:04:43.9]} 5. Be2 {[%clk 0:04:46.5]}
5... Nh6 {[%clk 0:04:42.3]} 6. h4 {[%clk 0:04:43.8]} 6... f6 {[%clk 0:04:17.1]}
7. Bf4 {[%clk 0:04:17]} 7... Nf7 {[%clk 0:04:11.4]} 8. Nc3 {[%clk 0:04:11.4]}
8... Bf5 {[%clk 0:04:02.7]} 9. Bg3 {[%clk 0:03:46.9]} 9... fxe5 {[%clk
0:03:53.1]} 10. dxe5 {[%clk 0:03:42.6]} 10... e6 {[%clk 0:03:51.3]} 11. h5
{[%clk 0:03:40.7]} 11... Bb4 {[%clk 0:03:40.6]} 12. Nf3 {[%clk 0:03:36.4]} 12...
Nc6 {[%clk 0:03:29.8]} 13. hxg6 {[%clk 0:03:17.2]} 13... hxg6 {[%clk 0:03:22.9]}
14. Rxh8+ {[%clk 0:03:15.6]} 14... Nxh8 {[%clk 0:03:22.8]} 15. Bh4 {[%clk
0:03:14.7]} 15... Be7 {[%clk 0:03:16]} 16. Bxe7 {[%clk 0:03:10.1]} 16... Qxe7
{[%clk 0:03:12.3]} 17. Qd2 {[%clk 0:03:06.6]} 17... O-O-O {[%clk 0:03:00.9]} 18.
O-O-O {[%clk 0:03:05.6]} 18... Nf7 {[%clk 0:03:00.1]} 19. Qf4 {[%clk 0:03:02.5]}
19... g5 {[%clk 0:02:56]} 20. Qg3 {[%clk 0:03:01.2]} 20... g4 {[%clk 0:02:52.4]}
21. Nd4 {[%clk 0:03:00]} 21... Nxd4 {[%clk 0:02:48.5]} 22. Rxd4 {[%clk
0:02:58.1]} 22... c5 {[%clk 0:02:48.1]} 23. Ra4 {[%clk 0:02:56.3]} 23... Kb8
{[%clk 0:02:40.5]} 24. Nb5 {[%clk 0:02:17.8]} 24... a6 {[%clk 0:02:36.9]} 25.
Qa3 {[%clk 0:02:15.9]} 25... Qg5+ {[%clk 0:02:24.4]} 26. Kb1 {[%clk 0:02:13.9]}
26... Qd2 {[%clk 0:02:23.8]} 27. Qe3 {[%clk 0:01:49.1]} 0-1

[Event "Live Chess"]
[Site "Chess.com"]
[Date "2024.06.02"]
[Round "-"]
[White "GEMdzq"]
[Black "CarmelJane"]
[Result "1-0"]
[WhiteElo "2273"]
[BlackElo "2043"]
[TimeControl "300"]
[EndTime "8:21:28 PDT"]
[Termination "GEMdzq won by checkmate"]

1. e4 {[%clk 0:04:57.7]} 1... g6 {[%clk 0:04:58.4]} 2. d4 {[%clk 0:04:56.3]}
2... Bg7 {[%clk 0:04:57.6]} 3. c3 {[%clk 0:04:55.5]} 3... a6 {[%clk 0:04:54.6]}
4. Bd3 {[%clk 0:04:55]} 4... b5 {[%clk 0:04:53.7]} 5. Nf3 {[%clk 0:04:54.6]}
5... Bb7 {[%clk 0:04:53.2]} 6. O-O {[%clk 0:04:54.2]} 6... d6 {[%clk 0:04:51.9]}
7. a4 {[%clk 0:04:53.2]} 7... Nd7 {[%clk 0:04:50]} 8. axb5 {[%clk 0:04:52.4]}
8... axb5 {[%clk 0:04:48.1]} 9. Rxa8 {[%clk 0:04:50.1]} 9... Qxa8 {[%clk
0:04:48]} 10. Nbd2 {[%clk 0:04:45.7]} 10... c6 {[%clk 0:04:39.2]} 11. Re1 {[%clk
0:04:43.4]} 11... Nb6 {[%clk 0:04:32.2]} 12. e5 {[%clk 0:04:41.6]} 12... dxe5
{[%clk 0:04:24.8]} 13. dxe5 {[%clk 0:04:38.8]} 13... e6 {[%clk 0:04:21.8]} 14.
Ne4 {[%clk 0:04:34.7]} 14... Nc8 {[%clk 0:03:51.8]} 15. Bg5 {[%clk 0:04:28]}
15... Nge7 {[%clk 0:03:50.6]} 16. Bxe7 {[%clk 0:04:26.5]} 16... Kxe7 {[%clk
0:03:46.9]} 17. Qc1 {[%clk 0:04:23.8]} 17... h6 {[%clk 0:03:38.3]} 18. Nc5
{[%clk 0:04:15.2]} 18... Nb6 {[%clk 0:03:26]} 19. Nd4 {[%clk 0:03:56.7]} 19...
Na4 {[%clk 0:03:16.5]} 20. b4 {[%clk 0:02:58.3]} 20... Rd8 {[%clk 0:02:56.7]}
21. Qf4 {[%clk 0:02:50.7]} 21... Nxc3 {[%clk 0:02:50.5]} 22. Qh4+ {[%clk
0:02:01.6]} 22... g5 {[%clk 0:02:48.2]} 23. Qg4 {[%clk 0:01:57.8]} 23... Nd5
{[%clk 0:02:43.3]} 24. Ndxe6 {[%clk 0:01:51.2]} 24... Bc8 {[%clk 0:02:35.2]} 25.
Qh5 {[%clk 0:01:39]} 25... Bxe6 {[%clk 0:02:30.5]} 26. Nxe6 {[%clk 0:01:37.6]}
26... Kxe6 {[%clk 0:02:25.4]} 27. Qg4+ {[%clk 0:01:31.5]} 27... Ke7 {[%clk
0:02:10.2]} 28. e6 {[%clk 0:01:30.4]} 28... f6 {[%clk 0:02:05.8]} 29. Qh5 {[%clk
0:01:26.2]} 29... Rf8 {[%clk 0:02:01.6]} 30. Qg6 {[%clk 0:01:21.3]} 30... Bh8
{[%clk 0:01:50.5]} 31. Qh7+ {[%clk 0:01:20]} 31... Kd6 {[%clk 0:01:49.5]} 32.
Qd7# {[%clk 0:01:17.2]} 1-0